[Event "Frauenbundesliga 2024-25"]
[Site "Germany"]
[Date "2024.11.16"]
[Round "1.11"]
[White "Just, Anita"]
[Black "Jelica, Mara"]
[Result "0-1"]
[Annotator "NA RC"]
[ECO "B84"]
[WhiteElo "1920"]
[BlackElo "2064"]
[PlyCount "116"]
[EventDate "2024.11.06"]
[EventType "team-tourn"]
[EventCountry "GER"]
[SourceTitle "playchess.com"]
[Source "ChessBase"]
[SourceQuality "1"]
[TimeControl "40/5400+30:1800+30"]

1. e4 {[%emt 0:00:03]} c5 {[%emt 0:01:40]} 2. Nf3 {[%emt 0:00:06]} d6 {[%emt 0:00:04]} 3. d4 {[%emt 0:00:06]} cxd4 {[%emt 0:00:05]} 4. Nxd4 {[%emt 0:00:05]} Nf6 {[%emt 0:00:05]} 5. Nc3 {[%emt 0:00:08]} a6 {[%emt 0:00:04]} 6. Be2 {[%emt 0:00:15]} e6 {[%emt 0:00:04]} 7. a4 {[%emt 0:00:22]} Be7 {[%emt 0:00:06]} 8. O-O {[%emt 0:00:28]} Nc6 {[%emt 0:00:31]} 9. Kh1 {[%emt 0:01:46]} Qc7 {[%emt 0:01:43]} 10. f4 {[%emt 0:02:46]} O-O {[%emt 0:00:40]} 11. Bf3 {[%emt 0:01:38]} Bd7 {[%emt 0:02:04]} 12. g4 {[%emt 0:01:31]} Nxd4 {[%emt 0:02:57]} 13. Qxd4 {[%emt 0:00:06]} e5 {[%emt 0:03:54]} 14. Qd1 {[%emt 0:04:56]} Bc6 {[%emt 0:09:11]} 15. g5 {[%emt 0:03:25]} Nd7 {[%emt 0:00:10]} 16. f5 {[%emt 0:04:04]} Rfe8 {[%emt 0:03:52]} 17. Bg2 {[%emt 0:03:51]} Bf8 {[%emt 0:04:22]} 18. Qh5 {[%emt 0:07:02]} g6 {[%emt 0:05:01]} 19. Qf3 {[%emt 0:05:48]} gxf5 {[%emt 0:05:12]} 20. Qxf5 {[%emt 0:00:15]} Nc5 {[%emt 0:00:38]} 21. Nd5 {[%emt 0:09:01]} Bxd5 {[%emt 0:01:17]} 22. exd5 {[%emt 0:00:05]} Qd7 {[%emt 0:01:57]} 23. Qf2 {[%emt 0:04:38]} Re7 {[%emt 0:01:25]} 24. Qh4 {[%emt 0:05:53]} b6 {[%emt 0:07:21]} 25. Ra3 {[%emt 0:08:44]} Bg7 {[%emt 0:04:57]} 26. b4 {[%emt 0:02:08]} Nxa4 {[%emt 0:00:43]} 27. Be4 {[%emt 0:09:47]} Qb5 {[%emt 0:03:05]} 28. Qxh7+ {[%emt 0:02:41]} Kf8 {[%emt 0:00:21]} 29. Qf5 {[%emt 0:01:53]} Qxb4 {[%emt 0:01:51]} 30. g6 {[%emt 0:05:08]} Nc3 {[%emt 0:03:50]} 31. Rxc3 {[%emt 0:04:50]} Qxc3 {[%emt 0:00:06]} 32. Bg5 {[%emt 0:00:49]} Rb7 {[%emt 0:17:17]} 33. Qe6 {[%emt 0:02:27]} f6 {[%emt 0:08:55]} 34. Bxf6 {[%emt 0:03:29]} Bxf6 {[%emt 0:00:22]} 35. Qxf6+ {[%emt 0:02:31]} Kg8 {[%emt 0:00:19]} 36. Qe6+ {[%emt 0:00:46]} Kg7 {[%emt 0:00:16]} 37. Rf7+ {[%emt 0:02:10]} Rxf7 {[%emt 0:00:08]} 38. Qxf7+ {[%emt 0:00:08]} Kh6 {[%emt 0:00:10]} 39. Qf2 {[%emt 0:01:18]} Kg7 {[%emt 0:06:41]} 40. Qf7+ {[%emt 0:00:34]} Kh6 {[%emt 0:00:19]} 41. Qf2 {[%emt 0:08:23]} Qa1+ {[%emt 0:19:20]} 42. Kg2 {[%emt 0:00:32]} Qd1 {[%emt 0:01:05]} 43. h3 {[%emt 0:12:08]} Qh5 {[%emt 0:01:53]} 44. Kh2 {[%emt 0:01:38]} Qg5 {[%emt 0:00:53]} 45. Kh1 {[%emt 0:02:19]} Qf4 {[%emt 0:00:15]} 46. Qg2 {[%emt 0:00:31]} Kg7 {[%emt 0:00:31]} 47. Bd3 {[%emt 0:01:06]} b5 {[%emt 0:00:56]} 48. Qe2 {[%emt 0:01:59]} Rh8 {[%emt 0:01:19]} 49. Kg2 {[%emt 0:00:55]} Rh4 {[%emt 0:00:23]} 50. c3 {[%emt 0:02:27]} e4 {[%emt 0:01:25]} 51. Bc2 {[%emt 0:00:33]} Qf3+ {[%emt 0:00:40]} 52. Qxf3 {[%emt 0:00:06]} exf3+ {[%emt 0:00:03]} 53. Kg3 {[%emt 0:00:59]} Rc4 {[%emt 0:00:26]} 54. h4 {[%emt 0:01:02]} Rxc3 {[%emt 0:00:08]} 55. Bf5 {[%emt 0:00:09]} b4 {[%emt 0:00:26]} 56. h5 {[%emt 0:00:22]} b3 {[%emt 0:00:15]} 57. Kg4 {[%emt 0:01:49]} f2 {[%emt 0:00:11]} 58. Kg5 {[%emt 0:00:43]} Rg3+ {[%emt 0:00:05]} 0-1

[Event "Frauenbundesliga 2024-25"]
[Site "Germany"]
[Date "2024.11.16"]
[Round "1.12"]
[White "Sickmann, Lisa"]
[Black "Heinemann, Josefine"]
[Result "1/2-1/2"]
[Annotator "RC"]
[ECO "B93"]
[WhiteElo "2123"]
[BlackElo "2314"]
[PlyCount "52"]
[EventDate "2024.11.06"]
[EventType "team-tourn"]
[EventCountry "GER"]
[SourceTitle "playchess.com"]
[Source "ChessBase"]
[SourceQuality "1"]
[TimeControl "40/5400+30:1800+30"]

1. e4 {[%emt 1:31:00]} c5 {[%emt 1:31:00]} 2. Nf3 {[%emt 0:00:30]} d6 {[%emt 0:00:30]} 3. d4 {[%emt 0:00:30]} cxd4 {[%emt 0:00:30]} 4. Nxd4 {[%emt 0:00:30]} Nf6 {[%emt 0:00:30]} 5. Nc3 {[%emt 0:00:30]} a6 {[%emt 0:00:30]} 6. f4 {[%emt 0:00:30]} e5 {[%emt 0:00:30]} 7. Nb3 {[%emt 0:00:30]} Be7 {[%emt 0:00:30]} 8. fxe5 {[%emt 0:00:30]} dxe5 {[%emt 0:00:30]} 9. Qxd8+ {[%emt 0:00:30]} Bxd8 {[%emt 0:00:30]} 10. Be3 {[%emt 0:00:30]} Nbd7 {[%emt 0:00:30]} 11. Be2 {[%emt 0:00:30]} b6 {[%emt 0:00:30]} 12. O-O-O {[%emt 0:00:30]} Bb7 {[%emt 0:00:30]} 13. Bf3 {[%emt 0:00:30]} Bc7 {[%emt 0:00:30]} 14. g4 {[%emt 0:00:30]} h6 {[%emt 0:00:30]} 15. h4 {[%emt 0:00:30]} O-O-O {[%emt 0:00:30]} 16. g5 {[%emt 0:00:30]} hxg5 {[%emt 0:00:30]} 17. hxg5 {[%emt 0:00:30]} Rxh1 {[%emt 0:00:30]} 18. Rxh1 {[%emt 0:00:30]} Ne8 {[%emt 0:00:30]} 19. Bg4 {[%emt 0:00:30]} Nd6 {[%emt 0:00:30]} 20. Rh7 {[%emt 0:00:30]} Nxe4 {[%emt 0:00:30]} 21. Rxg7 {[%emt 0:00:30]} Nd6 {[%emt 0:00:30]} 22. Na4 {[%emt 0:00:30]} Nc4 {[%emt 0:00:30]} 23. Bf2 {[%emt 0:00:30]} Bc6 {[%emt 0:00:30]} 24. Be2 {[%emt 0:00:30]} Bd5 {[%emt 0:00:30]} 25. Nc3 {[%emt 0:00:30]} Be6 {[%emt 0:00:30]} 26. g6 {[%emt 0:00:30]} Rf8 {[%emt 0:00:30]} 1/2-1/2

[Event "Frauenbundesliga 2024-25"]
[Site "Germany"]
[Date "2024.11.16"]
[Round "1.12"]
[White "Noppes, Marina"]
[Black "Peglau, Sarah"]
[Result "0-1"]
[Annotator "NA RC"]
[ECO "D11"]
[WhiteElo "1952"]
[BlackElo "1859"]
[PlyCount "126"]
[EventDate "2024.11.06"]
[EventType "team-tourn"]
[EventCountry "GER"]
[SourceTitle "playchess.com"]
[Source "ChessBase"]
[SourceQuality "1"]
[TimeControl "40/5400+30:1800+30"]

1. d4 {[%emt 0:00:09]} d5 {[%emt 0:00:07]} 2. Nf3 {[%emt 0:00:06]} Nf6 {[%emt 0:00:10]} 3. g3 {[%emt 0:01:32]} Bf5 {[%emt 0:01:55]} 4. Bg2 {[%emt 0:00:51]} c6 {[%emt 0:01:00]} 5. O-O {[%emt 0:00:22]} Nbd7 {[%emt 0:00:28]} 6. Nbd2 {[%emt 0:03:38]} e6 {[%emt 0:05:27]} 7. c4 {[%emt 0:04:03]} Bd6 {[%emt 0:01:24]} 8. b3 {[%emt 0:01:01]} O-O {[%emt 0:00:34]} 9. Bb2 {[%emt 0:00:21]} Qe7 {[%emt 0:04:11]} 10. Ne5 {[%emt 0:12:50]} Ne4 {[%emt 0:08:16]} 11. Nxe4 {[%emt 0:04:40]} Bxe4 {[%emt 0:00:32]} 12. f3 {[%emt 0:00:23]} Bg6 {[%emt 0:02:52]} 13. Nxg6 {[%emt 0:01:37]} hxg6 {[%emt 0:00:11]} 14. cxd5 {[%emt 0:01:54]} cxd5 {[%emt 0:07:21]} 15. e4 {[%emt 0:01:09]} Nb6 {[%emt 0:02:16]} 16. a3 {[%emt 0:05:05]} Qd7 {[%emt 0:11:12]} 17. Rc1 {[%emt 0:06:56]} a5 {[%emt 0:00:30]} 18. a4 {[%emt 0:01:11]} Bb4 {[%emt 0:10:37]} 19. Rf2 {[%emt 0:03:45]} Rfc8 {[%emt 0:01:36]} 20. Rfc2 {[%emt 0:00:18]} Rxc2 {[%emt 0:01:15]} 21. Rxc2 {[%emt 0:00:21]} Rc8 {[%emt 0:04:38]} 22. Bf1 {[%emt 0:02:43]} Rxc2 {[%emt 0:01:15]} 23. Qxc2 {[%emt 0:00:06]} Qc6 {[%emt 0:00:08]} 24. Bd3 {[%emt 0:02:36]} Qxc2 {[%emt 0:09:31]} 25. Bxc2 {[%emt 0:00:15]} Kf8 {[%emt 0:00:21]} 26. Kf2 {[%emt 0:01:26]} Ke7 {[%emt 0:00:08]} 27. Ke2 {[%emt 0:01:16]} Kd6 {[%emt 0:01:18]} 28. Bd3 {[%emt 0:01:07]} Na8 {[%emt 0:01:04]} 29. exd5 {[%emt 0:15:15]} exd5 {[%emt 0:00:16]} 30. Kd1 {[%emt 0:01:23]} Nc7 {[%emt 0:00:52]} 31. Kc2 {[%emt 0:02:21]} Ke6 {[%emt 0:06:56]} 32. Bc1 {[%emt 0:01:45]} Kf6 {[%emt 0:05:47]} 33. Bf1 {[%emt 0:02:39]} Ne6 {[%emt 0:03:07]} 34. Kd3 {[%emt 0:00:05]} Be1 {[%emt 0:00:59]} 35. Be3 {[%emt 0:01:34]} Ke7 {[%emt 0:03:51]} 36. f4 {[%emt 0:09:48]} Bb4 {[%emt 0:04:31]} 37. Bg2 {[%emt 0:05:10]} Nc7 {[%emt 0:00:02]} 38. g4 {[%emt 0:00:31]} Ke6 {[%emt 0:00:27]} 39. Bf2 {[%emt 0:03:47]} f5 {[%emt 0:01:12]} 40. h3 {[%emt 0:01:28]} Ne8 {[%emt 0:00:25]} 41. Bf3 {[%emt 0:03:33]} Nd6 {[%emt 0:02:40]} 42. Be3 {[%emt 0:07:35]} Ne8 {[%emt 0:07:30]} 43. Be2 {[%emt 0:05:46]} Nf6 {[%emt 0:00:10]} 44. Bf3 {[%emt 0:01:15]} Kd6 {[%emt 0:00:17]} 45. Be2 {[%emt 0:01:51]} Kc6 {[%emt 0:00:17]} 46. Kc2 {[%emt 0:00:22]} Ne4 {[%emt 0:00:26]} 47. Bb5+ {[%emt 0:00:33]} Kd6 {[%emt 0:03:56]} 48. Be8 {[%emt 0:02:11]} fxg4 {[%emt 0:00:13]} 49. hxg4 {[%emt 0:00:24]} Nf6 {[%emt 0:00:11]} 50. Bxg6 {[%emt 0:00:07]} Nxg4 {[%emt 0:00:05]} 51. Bg1 {[%emt 0:01:43]} Ke6 {[%emt 0:04:51]} 52. Bh5 {[%emt 0:02:44]} Kf5 {[%emt 0:01:01]} 53. Bf7 {[%emt 0:02:37]} Nf6 {[%emt 0:01:27]} 54. Be3 {[%emt 0:01:01]} Bd6 {[%emt 0:00:15]} 55. Bd2 {[%emt 0:02:07]} b6 {[%emt 0:00:25]} 56. b4 {[%emt 0:03:28]} axb4 {[%emt 0:02:29]} 57. Kb3 {[%emt 0:00:13]} Ke4 {[%emt 0:03:56]} 58. Bxb4 {[%emt 0:01:19]} Bxf4 {[%emt 0:00:13]} 59. Bc3 {[%emt 0:00:21]} g5 {[%emt 0:00:59]} 60. Kb4 {[%emt 0:00:45]} g4 {[%emt 0:00:32]} 61. Be1 {[%emt 0:02:28]} g3 {[%emt 0:00:11]} 62. Bxg3 {[%emt 0:00:04]} Bxg3 {[%emt 0:00:03]} 63. Kb5 {[%emt 0:00:03]} Bc7 {[%emt 0:00:15]} 0-1

[Event "Frauenbundesliga 2024-25"]
[Site "Germany"]
[Date "2024.11.17"]
[Round "2.1"]
[White "Javakhishvili, Lela"]
[Black "Peglau, Charis"]
[Result "1-0"]
[Annotator "TA"]
[ECO "D11"]
[WhiteElo "2422"]
[BlackElo "2131"]
[PlyCount "57"]
[EventDate "2024.11.06"]
[EventType "team-tourn"]
[EventCountry "GER"]
[SourceTitle "playchess.com"]
[Source "ChessBase"]
[SourceQuality "1"]
[TimeControl "40/5400+30:1800+30"]

{[%evp 9,57,13,11,14,42,20,67,58,70,58,80,83,73,61,79,94,71,75,120,112,134,114,179,174,169,162,147,167,198,232,377,376,789,817,840,836,1266,1000,1026,986,3170,2665,29990,29991,29995,29985,29985,29955,29996,29994]} 1. d4 {[%emt 0:00:03]} d5 {[%emt 0:00:06]} 2. Nf3 {[%emt 0:00:13]} Nf6 {[%emt 0:00:11]} 3. g3 {[%emt 0:00:21]} Bf5 {[%emt 0:01:59]} 4. c4 {[%emt 0:00:24]} c6 {[%emt 0:03:33]} 5. Nc3 {[%emt 0:00:14]} e6 {[%emt 0:02:48]} 6. Nh4 {[%emt 0:00:34]} Bg6 {[%emt 0:03:53]} 7. Qb3 {[%emt 0:01:11]} Qc8 {[%emt 0:04:33]} (7... Qb6 $11) 8. Bg2 {[%emt 0:02:17] White is slightly better.} Be7 {[%emt 0:01:25]} 9. O-O {[%emt 0:01:41]} Nbd7 {[%emt 0:02:17]} 10. Nxg6 {[%emt 0:02:48]} hxg6 {[%emt 0:00:08]} 11. Bf4 {[%emt 0:04:00]} Nb6 {[%emt 0:05:47]} 12. cxd5 {[%emt 0:02:11]} exd5 {[%emt 0:02:23]} 13. a4 {[%emt 0:01:11][%cal Ba2a4,Ba4a5][%mdl 32]} Nh5 {[%emt 0:15:33]} 14. Bc1 {[%emt 0:00:44] White is more active. A strong pair of Bishops.} Rb8 {[%emt 0:06:56]} 15. a5 {[%emt 0:01:00]} Na8 {[%emt 0:02:21]} (15... Nd7 $16 16. e4 dxe4 17. Nxe4 O-O) 16. Re1 $18 {[%emt 0:07:01][%cal Bf1e1,Be1e4,Be4h4,Bh4h3][%mdl 32]} O-O {[%emt 0:01:05]} 17. e4 {[%emt 0:01:11]} dxe4 {[%emt 0:14:33]} 18. Bxe4 {[%emt 0:00:36]} Bd6 {[%emt 0:04:56]} 19. Bxg6 {[%emt 0:02:54]} Nf6 {[%emt 0:00:07]} (19... Qh3 $142 20. Bg5 (20. Ne4 Nf4 $18) 20... Nc7) 20. Ne4 {[%emt 0:06:53]} Nxe4 {[%emt 0:00:56] [#]} (20... Qd8 21. Nxd6 Qxd6) 21. Rxe4 {[%emt 0:01:30]} ({Not} 21. Bxe4 Nc7 22. Bd2 Qg4 $18) 21... Qd8 {[%emt 0:06:53]} 22. Rh4 {[%emt 0:04:14]} Be7 {[%emt 0:04:19]} 23. Bh7+ {[%emt 0:00:45]} Kh8 {[%emt 0:00:04]} 24. Rh3 {[%emt 0:00:29] [#] Threatening mate with Qf3.} Nc7 {[%emt 0:03:41]} 25. Qf3 {[%emt 0:00:58]} g6 {[%emt 0:11:56]} 26. Bxg6+ {[%emt 0:00:35] White mates.} Kg7 {[%emt 0:00:14]} 27. Be4 {[%emt 0:01:32]} f5 {[%emt 0:00:48]} 28. Bxf5 {[%emt 0:00:30]} Ne6 {[%emt 0:00:33]} 29. Bh6+ {[%emt 0:01:18] Black got outplayed after the opening.   Weighted Error Value: White=0.09 (flawless) /Black=0.55.  Mistake:       	---       	Black=4      Inaccurate:     	---       	Black=2      OK:         	White=5     	Black=2      Best:        	White=2     	---} 1-0

[Event "Frauenbundesliga 2024-25"]
[Site "Germany"]
[Date "2024.11.17"]
[Round "2.1"]
[White "Antolak, Julia"]
[Black "Paehtz, Elisabeth"]
[Result "1-0"]
[Annotator "RC"]
[ECO "B32"]
[WhiteElo "2312"]
[BlackElo "2456"]
[PlyCount "53"]
[EventDate "2024.11.06"]
[EventType "team-tourn"]
[EventCountry "GER"]
[SourceTitle "playchess.com"]
[Source "ChessBase"]
[SourceQuality "1"]
[TimeControl "40/5400+30:1800+30"]

1. e4 {[%emt 0:00:04]} c5 {[%emt 0:00:03]} 2. Nf3 {[%emt 0:00:07]} Nc6 {[%emt 0:00:02]} 3. d4 {[%emt 0:00:07]} cxd4 {[%emt 0:00:04]} 4. Nxd4 {[%emt 0:00:06]} e5 {[%emt 0:00:02]} 5. Nb5 {[%emt 0:00:08]} d6 {[%emt 0:00:04]} 6. a4 {[%emt 0:02:50]} Be6 {[%emt 0:01:53]} 7. N5c3 {[%emt 0:02:26]} Nf6 {[%emt 0:05:02]} 8. Bg5 {[%emt 0:05:15]} Be7 {[%emt 0:00:55]} 9. Bxf6 {[%emt 0:00:43]} Bxf6 {[%emt 0:00:03]} 10. Nd5 {[%emt 0:01:03]} O-O {[%emt 0:04:28]} 11. Bc4 {[%emt 0:03:12]} Rc8 {[%emt 0:00:15]} 12. O-O {[%emt 0:02:34]} Nb4 {[%emt 0:08:29]} 13. Na3 {[%emt 0:03:03]} Nxd5 {[%emt 0:04:22]} 14. Bxd5 {[%emt 0:00:08]} Qb6 {[%emt 0:07:58]} 15. b3 {[%emt 0:03:13]} Rfd8 {[%emt 0:00:09]} 16. Nc4 {[%emt 0:03:40]} Qd4 {[%emt 0:09:30]} 17. Bxe6 {[%emt 0:06:02]} fxe6 {[%emt 0:00:05]} 18. Qg4 {[%emt 0:00:10]} Kf7 {[%emt 0:01:56]} 19. Rad1 {[%emt 0:09:06]} Qc5 {[%emt 0:00:03]} 20. Rd3 {[%emt 0:01:24]} Rc6 {[%emt 0:25:50]} 21. Rfd1 {[%emt 0:11:01]} d5 {[%emt 0:05:53]} 22. Qh5+ {[%emt 0:06:26]} Kg8 {[%emt 0:00:30]} 23. exd5 {[%emt 0:01:58]} e4 {[%emt 0:03:39]} 24. dxc6 {[%emt 0:05:27]} Qxh5 {[%emt 0:00:04]} 25. Rxd8+ {[%emt 0:00:06]} Bxd8 {[%emt 0:00:02]} 26. Rxd8+ {[%emt 0:00:06]} Kf7 {[%emt 0:00:01]} 27. c7 {[%emt 0:00:19]} 1-0

[Event "Frauenbundesliga 2024-25"]
[Site "Germany"]
[Date "2024.11.17"]
[Round "2.2"]
[White "Wagner, Dinara"]
[Black "Schulze, Lara"]
[Result "1-0"]
[Annotator "TA"]
[ECO "D24"]
[WhiteElo "2437"]
[BlackElo "2275"]
[PlyCount "61"]
[EventDate "2024.11.06"]
[EventType "team-tourn"]
[EventCountry "GER"]
[SourceTitle "playchess.com"]
[Source "ChessBase"]
[SourceQuality "1"]
[TimeControl "40/5400+30:1800+30"]

{[%evp 9,61,12,56,60,62,44,46,35,45,49,45,24,16,12,12,26,27,0,19,-7,14,0,19,10,76,68,80,81,147,146,419,390,396,388,436,420,459,399,687,713,741,730,1086,1114,1714,1670,1923,1572,2575,2465,2211,2034,1664,563]} 1. d4 Nf6 {[%emt 1:31:00]} 2. c4 {[%emt 1:31:30]} e6 {[%emt 0:00:30]} 3. Nf3 {[%emt 0:00:30]} d5 {[%emt 0:00:30]} 4. Nc3 dxc4 {[%emt 0:00:00]} 5. e4 b5 {[%emt 0:00:00]} 6. e5 {[%emt 0:00:00]} Nd5 {[%emt 0:00:00]} 7. Nxb5 {[%emt 0:00:00]} Nb6 {[%emt 0:00:00]} 8. Be2 {[%emt 0:00:00] White is slightly better.} Nc6 {[%emt 0:00:00]} 9. O-O {[%emt 0:00:00]} Be7 {[%emt 0:00:00]} 10. Rb1 {[%emt 0:00:26]} Rb8 {[%emt 0:00:00]} 11. b3 {[%emt 0:00:30]} cxb3 {[%emt 0:00:00]} 12. Rxb3 {[%emt 0:00:30]} Bb7 {[%emt 0:00:00]} 13. Re1 {[%emt 0:00:30]} h6 {[%emt 0:00:00]} 14. h4 {[%emt 0:00:30][%cal Bh2h4,Bh4h5][%mdl 32]} g5 {[%emt 0:00:00]} 15. h5 {[%emt 0:00:30]} a6 {[%emt 0:00:00]} 16. Na3 {[%emt 0:00:30][%cal Bb5a3,Ba3c2,Bc2e3][%mdl 32]} Qd5 {[%emt 0:00:00]} (16... g4 17. Nh2 $14) (16... Nb4 $11) 17. Nc2 $16 {[%emt 0:00:30]} Na5 {[%emt 0:00:00]} 18. Ne3 {[%emt 0:00:30]} Qc6 {[%emt 0:00:00]} (18... Qd7 $142) 19. Rb1 {[%emt 0:00:30] Threatens to win with Bd2.} Nac4 {[%emt 0:00:00][%mdl 8192] Loses the game.} (19... Qd7 $16 20. Ng4 Qd8 21. Nf6+ Bxf6) 20. Nxc4 {[%emt 0:00:30]} (20. d5 Nxe3 21. dxc6 (21. Bxe3 Qxd5 22. Qc2 Qc6 $11) 21... Nxd1 22. cxb7 (22. Rxb6 cxb6 23. cxb7 Nc3 $17) 22... Nc3 $16) 20... Nxc4 {[%emt 0:00:00] [#]} 21. d5 $1 {[%emt 0:00:30][%mdl 512]} exd5 {[%emt 0:00:00]} (21... Qxd5 22. Qa4+) 22. Nd4 {[%emt 0:00:30]} Qc5 {[%emt 0:00:00]} 23. Nf5 {[%emt 0:00:30]} Qc6 $2 {[%emt 0:00:00]} (23... O-O 24. Bf1 (24. Nxh6+ Kh8 $18) 24... Kh8) 24. Bf1 $18 {[%emt 0:00:30] White is clearly winning.} Bc5 {[%emt 0:00:00] [#]} 25. e6 $1 {[%emt 0:00:30][%cal Be5e6,Be6f7][%mdl 544]} O-O {[%emt 0:00:00][%cal Be8g8,Bg8h7,Bh7h8,Bh8g7][%mdl 32]} (25... fxe6 26. Rxe6+) 26. Nxh6+ {[%emt 0:00:30]} Kh7 {[%emt 0:00:00]} 27. Nxf7 {[%emt 0:00:30] Threatening mate with Qc2+.} Rxf7 {[%emt 0:00:00]} 28. Qd3+ {[%emt 0:00:30]} Kh8 {[%emt 0:00:00]} 29. exf7 {[%emt 0:00:30]} Qf6 {[%emt 0:00:00]} 30. Re8+ {[%emt 0:00:30]} Kg7 {[%emt 0:00:00]} 31. Qg6+ {[%emt 0:00:30] Weighted Error Value: White=0.07 (flawless) /Black=0.58.  Loses game:     	---       	Black=1      Mistake:       	---       	Black=3      Inaccurate:     	White=2     	---        OK:         	White=6     	Black=6      Best:        	White=2     	---        Brilliant:      	White=1     	---} ({Worse is} 31. Rxb8 Qxf2+ 32. Kh2 Qg1+ 33. Kh3 Qh1+ 34. Kg4 (34. Kg3 {leads to mate.} Qh4+ 35. Kf3 Qf2+ 36. Kg4 Ne5+ 37. Kxg5 Qf6#) 34... Ne5+ 35. Kf5 Nxd3 $11) (31. f8=R $142 Bxf8 32. Rxb8) 1-0